[Event "Early-Titled-Tuesday-Blitz-May-07-2024"]
[Site "Chess.com"]
[Date "2024.05.07"]
[Round "2"]
[White "Shivananda1964"]
[Black "YouJustFoundYourGodfather"]
[Result "1-0"]
[WhiteElo "2380"]
[BlackElo "2552"]
[TimeControl "180+1"]
[EndTime "8:20:58 PDT"]
[Termination "Shivananda1964 won on time"]

1. Nf3 {[%clk 0:02:59.8]} 1... g6 {[%clk 0:02:54]} 2. d4 {[%clk 0:02:59]} 2...
Bg7 {[%clk 0:02:54.5]} 3. g3 {[%clk 0:02:57.7]} 3... d6 {[%clk 0:02:54.4]} 4.
Bg2 {[%clk 0:02:57.9]} 4... c5 {[%clk 0:02:52.9]} 5. d5 {[%clk 0:02:54.1]} 5...
Nf6 {[%clk 0:02:51.4]} 6. O-O {[%clk 0:02:54]} 6... O-O {[%clk 0:02:51.1]} 7.
Nc3 {[%clk 0:02:54.2]} 7... Na6 {[%clk 0:02:45.2]} 8. Nd2 {[%clk 0:02:53.4]}
8... Re8 {[%clk 0:02:41.8]} 9. Nc4 {[%clk 0:02:47.1]} 9... Bf5 {[%clk
0:02:33.4]} 10. e4 {[%clk 0:02:44.8]} 10... Bg4 {[%clk 0:02:32.4]} 11. f3 {[%clk
0:02:37.2]} 11... Bd7 {[%clk 0:02:32.1]} 12. a4 {[%clk 0:02:37.4]} 12... Nb4
{[%clk 0:02:27.6]} 13. g4 {[%clk 0:02:35.3]} 13... h5 {[%clk 0:02:25.5]} 14. g5
{[%clk 0:02:31.2]} 14... Nh7 {[%clk 0:02:25.1]} 15. Bf4 {[%clk 0:02:29.6]} 15...
b6 {[%clk 0:02:08.4]} 16. h4 {[%clk 0:02:29]} 16... Qc8 {[%clk 0:01:59.8]} 17.
Kh2 {[%clk 0:02:27.5]} 17... Qa6 {[%clk 0:01:58.6]} 18. Ne3 {[%clk 0:02:13.7]}
18... Rad8 {[%clk 0:01:52]} 19. Qd2 {[%clk 0:02:10.3]} 19... Bd4 {[%clk
0:01:28.2]} 20. Ncd1 {[%clk 0:01:56.9]} 20... Bxe3 {[%clk 0:01:18.4]} 21. Nxe3
{[%clk 0:01:54.3]} 21... Bc8 {[%clk 0:01:11.9]} 22. Rf2 {[%clk 0:01:51.3]} 22...
Nf8 {[%clk 0:01:10.3]} 23. Bg3 {[%clk 0:01:18.4]} 23... e6 {[%clk 0:01:08.2]}
24. c3 {[%clk 0:01:13.7]} 24... Nd3 {[%clk 0:01:06.2]} 25. Bf1 {[%clk
0:01:13.6]} 25... c4 {[%clk 0:01:05.3]} 26. Bxd3 {[%clk 0:00:41.4]} 26... cxd3
{[%clk 0:01:04]} 27. c4 {[%clk 0:00:40.2]} 27... exd5 {[%clk 0:00:58.7]} 28.
Nxd5 {[%clk 0:00:38.2]} 28... Nd7 {[%clk 0:00:49.9]} 29. Qxd3 {[%clk 0:00:32.6]}
29... Qb7 {[%clk 0:00:33.1]} 30. b3 {[%clk 0:00:29.8]} 30... Qb8 {[%clk
0:00:31.6]} 31. Rd1 {[%clk 0:00:29]} 31... Bb7 {[%clk 0:00:31.9]} 32. Nc3 {[%clk
0:00:22.5]} 32... Nc5 {[%clk 0:00:28.2]} 33. Qc2 {[%clk 0:00:22.7]} 33... a6
{[%clk 0:00:24.1]} 34. Rfd2 {[%clk 0:00:22]} 34... Re6 {[%clk 0:00:21.8]} 35.
Ne2 {[%clk 0:00:17.7]} 35... Qc8 {[%clk 0:00:19.3]} 36. Nf4 {[%clk 0:00:16.9]}
36... Ree8 {[%clk 0:00:18.7]} 37. Nd5 {[%clk 0:00:16.5]} 37... Bxd5 {[%clk
0:00:19.3]} 38. Rxd5 {[%clk 0:00:16.7]} 38... Nb7 {[%clk 0:00:19.7]} 39. Qc3
{[%clk 0:00:15.4]} 39... Re6 {[%clk 0:00:18.1]} 40. Qd4 {[%clk 0:00:15.5]} 40...
Qc6 {[%clk 0:00:17.3]} 41. Be1 {[%clk 0:00:15.5]} 41... Nc5 {[%clk 0:00:15.1]}
42. Bc3 {[%clk 0:00:15.3]} 42... Kf8 {[%clk 0:00:13.7]} 43. Qg7+ {[%clk
0:00:13.8]} 43... Ke8 {[%clk 0:00:13.4]} 44. Bf6 {[%clk 0:00:13]} 44... Nd7
{[%clk 0:00:06.8]} 45. Qh8+ {[%clk 0:00:11.4]} 45... Nf8 {[%clk 0:00:07]} 46.
Bg7 {[%clk 0:00:11.9]} 46... Ke7 {[%clk 0:00:06.3]} 47. Bf6+ {[%clk 0:00:12.3]}
47... Kd7 {[%clk 0:00:04.4]} 48. Bxd8 {[%clk 0:00:12.4]} 48... Re8 {[%clk
0:00:03.8]} 49. Bf6 {[%clk 0:00:10.6]} 49... Ne6 {[%clk 0:00:03.9]} 50. Qh7
{[%clk 0:00:10.9]} 50... Kc8 {[%clk 0:00:02.8]} 51. Qxf7 {[%clk 0:00:10.8]}
51... Nc5 {[%clk 0:00:02.5]} 52. Rxd6 {[%clk 0:00:09.7]} 52... Qc7 {[%clk
0:00:02.7]} 53. Qxe8+ {[%clk 0:00:09.4]} 53... Kb7 {[%clk 0:00:03.1]} 54. Be5
{[%clk 0:00:08.7]} 1-0

[Event "Early-Titled-Tuesday-Blitz-May-07-2024"]
[Site "Chess.com"]
[Date "2024.05.07"]
[Round "2"]
[White "DonJuanEGenaro"]
[Black "DvaHrasta"]
[Result "0-1"]
[WhiteElo "2055"]
[BlackElo "2445"]
[TimeControl "180+1"]
[EndTime "8:21:00 PDT"]
[Termination "DvaHrasta won on time"]

1. d4 {[%clk 0:02:56.1]} 1... Nf6 {[%clk 0:02:59.8]} 2. Nf3 {[%clk 0:02:56.1]}
2... e6 {[%clk 0:02:59.9]} 3. e3 {[%clk 0:02:55.3]} 3... d5 {[%clk 0:02:57.6]}
4. Bd3 {[%clk 0:02:55]} 4... Bd6 {[%clk 0:02:55.7]} 5. Nbd2 {[%clk 0:02:52.6]}
5... b6 {[%clk 0:02:54.8]} 6. e4 {[%clk 0:02:51]} 6... Be7 {[%clk 0:02:33.5]} 7.
e5 {[%clk 0:02:48.2]} 7... Nfd7 {[%clk 0:02:33.4]} 8. c3 {[%clk 0:02:48]} 8...
Ba6 {[%clk 0:02:29]} 9. c4 {[%clk 0:02:31.6]} 9... c5 {[%clk 0:02:25.5]} 10. Qe2
{[%clk 0:02:00.8]} 10... Nc6 {[%clk 0:02:19.1]} 11. cxd5 {[%clk 0:01:53.4]}
11... Bxd3 {[%clk 0:02:17.8]} 12. Qxd3 {[%clk 0:01:53]} 12... exd5 {[%clk
0:02:06.1]} 13. dxc5 {[%clk 0:01:39.4]} 13... Nxc5 {[%clk 0:02:01.7]} 14. Qb5
{[%clk 0:01:38.9]} 14... Qd7 {[%clk 0:01:55.1]} 15. O-O {[%clk 0:01:34.5]} 15...
Nxe5 {[%clk 0:01:49]} 16. Qxd7+ {[%clk 0:01:19.8]} 16... Nexd7 {[%clk
0:01:48.9]} 17. Nd4 {[%clk 0:01:16.6]} 17... O-O {[%clk 0:01:43.4]} 18. N2f3
{[%clk 0:01:16.2]} 18... Bf6 {[%clk 0:01:42.3]} 19. Bf4 {[%clk 0:01:15.2]} 19...
Rfe8 {[%clk 0:01:40.5]} 20. Rad1 {[%clk 0:01:08.8]} 20... a6 {[%clk 0:01:34.4]}
21. b3 {[%clk 0:01:00.6]} 21... Rac8 {[%clk 0:01:33.3]} 22. Nf5 {[%clk
0:01:00.1]} 22... Re2 {[%clk 0:01:23.8]} 23. Rxd5 {[%clk 0:00:54.8]} 23... Rxa2
{[%clk 0:01:09.8]} 24. b4 {[%clk 0:00:54]} 24... Ne6 {[%clk 0:01:08.7]} 25. Rxd7
{[%clk 0:00:45.4]} 25... Nxf4 {[%clk 0:01:08.6]} 26. Nd6 {[%clk 0:00:40.2]}
26... Rf8 {[%clk 0:01:00.4]} 27. g3 {[%clk 0:00:28.7]} 27... Ne2+ {[%clk
0:00:57.5]} 28. Kg2 {[%clk 0:00:27.8]} 28... Nc3 {[%clk 0:00:52.9]} 29. g4
{[%clk 0:00:22]} 29... h6 {[%clk 0:00:52.1]} 30. h4 {[%clk 0:00:21.6]} 30... Rd8
{[%clk 0:00:42.7]} 31. Rxd8+ {[%clk 0:00:14.8]} 31... Bxd8 {[%clk 0:00:42.7]}
32. Re1 {[%clk 0:00:13.9]} 32... Bc7 {[%clk 0:00:32.2]} 33. Re8+ {[%clk
0:00:13.1]} 33... Kh7 {[%clk 0:00:32.2]} 34. Nxf7 {[%clk 0:00:13]} 34... g6
{[%clk 0:00:26.5]} 35. h5 {[%clk 0:00:09.8]} 35... gxh5 {[%clk 0:00:20.8]} 36.
Re7 {[%clk 0:00:09.1]} 36... hxg4 {[%clk 0:00:19.6]} 37. N7e5+ {[%clk
0:00:07.3]} 37... Kg8 {[%clk 0:00:18]} 38. Nxg4 {[%clk 0:00:06.7]} 38... Bf4
{[%clk 0:00:15.9]} 39. Nf6+ {[%clk 0:00:06.3]} 39... Kf8 {[%clk 0:00:15.2]} 40.
Rb7 {[%clk 0:00:06.2]} 40... Nd1 {[%clk 0:00:11.4]} 41. Nd4 {[%clk 0:00:05.9]}
41... Rxf2+ {[%clk 0:00:10.3]} 42. Kh3 {[%clk 0:00:05.5]} 42... Rh2+ {[%clk
0:00:08.3]} 43. Kg4 {[%clk 0:00:04.7]} 43... Ne3+ {[%clk 0:00:07.9]} 44. Kxf4
{[%clk 0:00:04.6]} 44... Nd5+ {[%clk 0:00:07.9]} 45. Ke5 {[%clk 0:00:04.2]}
45... Nxf6 {[%clk 0:00:06.1]} 46. Kxf6 {[%clk 0:00:04.4]} 46... Rf2+ {[%clk
0:00:06.3]} 47. Nf5 {[%clk 0:00:04.7]} 47... Ke8 {[%clk 0:00:06.2]} 48. Rxb6
{[%clk 0:00:04.9]} 48... h5 {[%clk 0:00:06.8]} 49. Rxa6 {[%clk 0:00:04.3]} 49...
h4 {[%clk 0:00:07.2]} 50. Ke6 {[%clk 0:00:04.1]} 50... Kd8 {[%clk 0:00:05.5]}
51. Ra7 {[%clk 0:00:03.9]} 51... h3 {[%clk 0:00:05.2]} 52. Nd6 {[%clk
0:00:03.9]} 52... Re2+ {[%clk 0:00:04.2]} 53. Kd5 {[%clk 0:00:03.9]} 53... h2
{[%clk 0:00:04.5]} 54. Kc6 {[%clk 0:00:03.9]} 54... Rc2+ {[%clk 0:00:03.9]} 55.
Kb6 {[%clk 0:00:02.1]} 55... h1=Q {[%clk 0:00:03.6]} 56. Rg7 {[%clk 0:00:00.8]}
56... Rd2 {[%clk 0:00:01.8]} 0-1

[Event "Early-Titled-Tuesday-Blitz-May-07-2024"]
[Site "Chess.com"]
[Date "2024.05.07"]
[Round "2"]
[White "Andrei_Skvortsov"]
[Black "zsizsi99"]
[Result "0-1"]
[WhiteElo "2721"]
[BlackElo "2516"]
[TimeControl "180+1"]
[EndTime "8:21:01 PDT"]
[Termination "zsizsi99 won by checkmate"]

1. e4 {[%clk 0:03:00.9]} 1... c5 {[%clk 0:03:00.1]} 2. d4 {[%clk 0:02:59.6]}
2... cxd4 {[%clk 0:02:59.3]} 3. Qxd4 {[%clk 0:03:00.5]} 3... Nc6 {[%clk
0:02:58.3]} 4. Qd3 {[%clk 0:03:00.9]} 4... g6 {[%clk 0:02:52.9]} 5. Nc3 {[%clk
0:02:52.7]} 5... Bg7 {[%clk 0:02:53.1]} 6. Nf3 {[%clk 0:02:49.6]} 6... d6 {[%clk
0:02:51.3]} 7. Be2 {[%clk 0:02:50.2]} 7... Nf6 {[%clk 0:02:51.6]} 8. O-O {[%clk
0:02:50.2]} 8... O-O {[%clk 0:02:52]} 9. Nd5 {[%clk 0:02:50.9]} 9... Nxd5 {[%clk
0:02:50.5]} 10. exd5 {[%clk 0:02:51.8]} 10... Ne5 {[%clk 0:02:49.4]} 11. Nxe5
{[%clk 0:02:51]} 11... dxe5 {[%clk 0:02:48.9]} 12. Qb3 {[%clk 0:02:45.9]} 12...
e6 {[%clk 0:02:26]} 13. c4 {[%clk 0:02:33.3]} 13... exd5 {[%clk 0:02:19.2]} 14.
cxd5 {[%clk 0:02:30.5]} 14... b6 {[%clk 0:01:54.9]} 15. Be3 {[%clk 0:02:25.2]}
15... Bb7 {[%clk 0:01:54.5]} 16. Rfd1 {[%clk 0:02:25.2]} 16... Qd6 {[%clk
0:01:53.5]} 17. a4 {[%clk 0:02:19.3]} 17... Rfd8 {[%clk 0:01:53]} 18. Bc4 {[%clk
0:02:19.9]} 18... f5 {[%clk 0:01:48.7]} 19. f3 {[%clk 0:02:20]} 19... e4 {[%clk
0:01:46.6]} 20. fxe4 {[%clk 0:02:18.8]} 20... fxe4 {[%clk 0:01:47.1]} 21. Bd4
{[%clk 0:02:18.6]} 21... Bxd4+ {[%clk 0:01:36.7]} 22. Rxd4 {[%clk 0:02:19.5]}
22... Qc5 {[%clk 0:01:36.3]} 23. Rd1 {[%clk 0:02:18.5]} 23... Rd6 {[%clk
0:01:17.1]} 24. Kh1 {[%clk 0:01:55.5]} 24... Re8 {[%clk 0:01:17.4]} 25. Qe3
{[%clk 0:01:42]} 25... Re5 {[%clk 0:01:13.3]} 26. b4 {[%clk 0:01:36.4]} 26...
Qxb4 {[%clk 0:01:02.8]} 27. Ba6 {[%clk 0:01:33.8]} 27... Rexd5 {[%clk
0:00:49.1]} 28. Rxd5 {[%clk 0:01:32.6]} 28... Rxd5 {[%clk 0:00:45.6]} 29. Rxd5
{[%clk 0:01:16]} 29... Qb1+ {[%clk 0:00:44.6]} 30. Qg1 {[%clk 0:01:14.3]} 30...
Qxg1+ {[%clk 0:00:45.1]} 31. Kxg1 {[%clk 0:01:15.2]} 31... Bxd5 {[%clk
0:00:45.2]} 32. Kf2 {[%clk 0:01:15.9]} 32... Kf7 {[%clk 0:00:43.8]} 33. Ke3
{[%clk 0:01:15.3]} 33... Bc6 {[%clk 0:00:39.6]} 34. Bb5 {[%clk 0:00:58.2]} 34...
Bb7 {[%clk 0:00:19.4]} 35. Kd4 {[%clk 0:00:55.2]} 35... Ke6 {[%clk 0:00:19.5]}
36. g4 {[%clk 0:00:52.7]} 36... Kd6 {[%clk 0:00:19.3]} 37. g5 {[%clk 0:00:50.7]}
37... a6 {[%clk 0:00:16]} 38. Bc4 {[%clk 0:00:50.1]} 38... Bc6 {[%clk
0:00:13.7]} 39. Bxa6 {[%clk 0:00:46.4]} 39... e3 {[%clk 0:00:11.6]} 40. Bc4
{[%clk 0:00:42.3]} 40... Bxa4 {[%clk 0:00:09.8]} 41. Kxe3 {[%clk 0:00:42.4]}
41... Ke5 {[%clk 0:00:08.6]} 42. Bg8 {[%clk 0:00:41.4]} 42... Kf5 {[%clk
0:00:09]} 43. h4 {[%clk 0:00:41.1]} 43... Kg4 {[%clk 0:00:09.1]} 44. Bxh7 {[%clk
0:00:40.2]} 44... Be8 {[%clk 0:00:05.4]} 45. Bg8 {[%clk 0:00:34.1]} 45... Kxh4
{[%clk 0:00:05.4]} 46. Kf4 {[%clk 0:00:34.4]} 46... b5 {[%clk 0:00:05.7]} 47.
Be6 {[%clk 0:00:33.5]} 47... Kh5 {[%clk 0:00:04.5]} 48. Bb3 {[%clk 0:00:23]}
48... Bc6 {[%clk 0:00:04.7]} 49. Bd1+ {[%clk 0:00:22.8]} 49... Kh4 {[%clk
0:00:04.9]} 50. Bc2 {[%clk 0:00:23.5]} 50... Be8 {[%clk 0:00:02.9]} 51. Bb3
{[%clk 0:00:21.4]} 51... Kh5 {[%clk 0:00:03.5]} 52. Be6 {[%clk 0:00:20.6]} 52...
Kh4 {[%clk 0:00:04.2]} 53. Bd5 {[%clk 0:00:20.2]} 53... Bd7 {[%clk 0:00:04.3]}
54. Be4 {[%clk 0:00:20]} 54... Kh5 {[%clk 0:00:04.7]} 55. Bf3+ {[%clk
0:00:19.9]} 55... Kh4 {[%clk 0:00:05.4]} 56. Bd5 {[%clk 0:00:20.4]} 56... Be8
{[%clk 0:00:06.1]} 57. Bb3 {[%clk 0:00:19.9]} 57... b4 {[%clk 0:00:06]} 58. Bd5
{[%clk 0:00:19.9]} 58... Kh5 {[%clk 0:00:06.4]} 59. Be4 {[%clk 0:00:19.5]} 59...
Bf7 {[%clk 0:00:05.6]} 60. Bc2 {[%clk 0:00:19.4]} 60... b3 {[%clk 0:00:05.2]}
61. Bd3 {[%clk 0:00:19.8]} 61... Kh4 {[%clk 0:00:04]} 62. Bf1 {[%clk 0:00:17.6]}
62... Be6 {[%clk 0:00:03.3]} 63. Bd3 {[%clk 0:00:17.9]} 63... Bf5 {[%clk
0:00:03]} 64. Bxf5 {[%clk 0:00:17.2]} 64... gxf5 {[%clk 0:00:03.7]} 65. g6
{[%clk 0:00:18]} 65... b2 {[%clk 0:00:03.3]} 66. g7 {[%clk 0:00:18.8]} 66...
b1=Q {[%clk 0:00:03.1]} 67. g8=Q {[%clk 0:00:19.7]} 67... Qe4# {[%clk
0:00:03.2]} 0-1

[Event "Early-Titled-Tuesday-Blitz-May-07-2024"]
[Site "Chess.com"]
[Date "2024.05.07"]
[Round "2"]
[White "Me_ch_an"]
[Black "kanzaww"]
[Result "1-0"]
[WhiteElo "2367"]
[BlackElo "2529"]
[TimeControl "180+1"]
[EndTime "8:21:05 PDT"]
[Termination "Me_ch_an won by resignation"]

1. e4 {[%clk 0:03:00.9]} 1... e5 {[%clk 0:02:59.5]} 2. Nf3 {[%clk 0:02:55.1]}
2... Nc6 {[%clk 0:02:59.3]} 3. Bb5 {[%clk 0:02:54.5]} 3... a6 {[%clk 0:02:58.9]}
4. Ba4 {[%clk 0:02:53.7]} 4... Nf6 {[%clk 0:02:59]} 5. Qe2 {[%clk 0:02:53.6]}
5... b5 {[%clk 0:02:57.3]} 6. Bb3 {[%clk 0:02:53.3]} 6... Bc5 {[%clk 0:02:57.6]}
7. c3 {[%clk 0:02:53.5]} 7... O-O {[%clk 0:02:57.8]} 8. O-O {[%clk 0:02:53.4]}
8... d5 {[%clk 0:02:54.1]} 9. d3 {[%clk 0:02:52.3]} 9... h6 {[%clk 0:02:49.4]}
10. Rd1 {[%clk 0:02:49.5]} 10... d4 {[%clk 0:02:45.2]} 11. Nbd2 {[%clk
0:02:48.9]} 11... Bg4 {[%clk 0:02:44.6]} 12. Nf1 {[%clk 0:02:48.2]} 12... Qe7
{[%clk 0:02:38.6]} 13. h3 {[%clk 0:02:46.4]} 13... Be6 {[%clk 0:02:34.9]} 14.
Bc2 {[%clk 0:02:43.7]} 14... Rfd8 {[%clk 0:02:33.8]} 15. Ng3 {[%clk 0:02:42.9]}
15... dxc3 {[%clk 0:02:29.1]} 16. bxc3 {[%clk 0:02:42.6]} 16... b4 {[%clk
0:02:29.5]} 17. Ba4 {[%clk 0:02:34]} 17... Bd7 {[%clk 0:02:17.2]} 18. Bxc6
{[%clk 0:02:30.7]} 18... Bxc6 {[%clk 0:02:17]} 19. d4 {[%clk 0:02:30.4]} 19...
exd4 {[%clk 0:02:08.7]} 20. cxd4 {[%clk 0:02:30.2]} 20... Bb6 {[%clk 0:02:05.6]}
21. d5 {[%clk 0:02:12.2]} 21... Bb5 {[%clk 0:02:03.9]} 22. Qc2 {[%clk
0:02:01.2]} 22... c6 {[%clk 0:01:52.8]} 23. Bb2 {[%clk 0:01:06.8]} 23... cxd5
{[%clk 0:01:50.7]} 24. Bxf6 {[%clk 0:01:02.9]} 24... Qxf6 {[%clk 0:01:50]} 25.
exd5 {[%clk 0:01:03.5]} 25... Rac8 {[%clk 0:01:49.7]} 26. Qf5 {[%clk 0:00:41]}
26... Qb2 {[%clk 0:01:40.6]} 27. Ne5 {[%clk 0:00:30.4]} 27... Be8 {[%clk
0:01:29.8]} 28. Rab1 {[%clk 0:00:18.8]} 28... Qxa2 {[%clk 0:01:21.7]} 29. Rxb4
{[%clk 0:00:18.7]} 29... Qa5 {[%clk 0:01:12.5]} 30. Rf4 {[%clk 0:00:16.5]} 30...
f6 {[%clk 0:00:54.1]} 31. Qe6+ {[%clk 0:00:15.7]} 31... Kh8 {[%clk 0:00:52.1]}
32. Nf7+ {[%clk 0:00:15.2]} 32... Bxf7 {[%clk 0:00:50.9]} 33. Qxf7 {[%clk
0:00:16]} 33... Rc7 {[%clk 0:00:48.7]} 34. Qg6 {[%clk 0:00:16.2]} 34... Qc3
{[%clk 0:00:42.9]} 35. Re4 {[%clk 0:00:15.9]} 35... Qc2 {[%clk 0:00:35.7]} 36.
Re8+ {[%clk 0:00:13.6]} 36... Rxe8 {[%clk 0:00:36]} 37. Qxe8+ {[%clk 0:00:13.8]}
37... Kh7 {[%clk 0:00:36]} 38. Qe4+ {[%clk 0:00:14]} 38... Qxe4 {[%clk 0:00:30]}
39. Nxe4 {[%clk 0:00:14.9]} 39... a5 {[%clk 0:00:21.8]} 40. d6 {[%clk 0:00:14]}
40... Rd7 {[%clk 0:00:22]} 41. Nc3 {[%clk 0:00:13.1]} 41... Bc5 {[%clk
0:00:21.3]} 42. Nb5 {[%clk 0:00:13.5]} 42... Bb4 {[%clk 0:00:20.7]} 43. f4
{[%clk 0:00:11.2]} 43... a4 {[%clk 0:00:20.6]} 44. f5 {[%clk 0:00:10.7]} 44...
a3 {[%clk 0:00:17.5]} 45. Kf2 {[%clk 0:00:10.3]} 45... Kg8 {[%clk 0:00:16.4]}
46. Kf3 {[%clk 0:00:10.3]} 46... Kf7 {[%clk 0:00:15]} 47. Ke4 {[%clk 0:00:10.7]}
47... a2 {[%clk 0:00:10.6]} 48. Kd5 {[%clk 0:00:10.8]} 48... Rb7 {[%clk
0:00:08.7]} 49. Kc6 {[%clk 0:00:10]} 49... Rb8 {[%clk 0:00:07.3]} 50. d7 {[%clk
0:00:10.5]} 50... Be7 {[%clk 0:00:07.3]} 51. Nc7 {[%clk 0:00:09.5]} 51... Bd8
{[%clk 0:00:06.8]} 52. Ne6 {[%clk 0:00:09.7]} 52... Ra8 {[%clk 0:00:06.8]} 53.
Nxd8+ {[%clk 0:00:09.6]} 53... Rxd8 {[%clk 0:00:07.2]} 54. Ra1 {[%clk
0:00:10.4]} 54... Ra8 {[%clk 0:00:06.5]} 55. Kc7 {[%clk 0:00:10.3]} 55... Ke7
{[%clk 0:00:06.2]} 56. Re1+ {[%clk 0:00:10.6]} 56... Kf7 {[%clk 0:00:06.1]} 57.
d8=Q {[%clk 0:00:11]} 57... Rxd8 {[%clk 0:00:05]} 58. Kxd8 {[%clk 0:00:11]}
58... g6 {[%clk 0:00:05.4]} 59. fxg6+ {[%clk 0:00:10.5]} 59... Kxg6 {[%clk
0:00:06.3]} 60. Ra1 {[%clk 0:00:10.9]} 60... Kf5 {[%clk 0:00:06.4]} 61. Rxa2
{[%clk 0:00:11.4]} 61... Kf4 {[%clk 0:00:07.3]} 62. Ke7 {[%clk 0:00:11.6]} 62...
f5 {[%clk 0:00:07.5]} 63. Kf6 {[%clk 0:00:11.9]} 1-0

[Event "Early-Titled-Tuesday-Blitz-May-07-2024"]
[Site "Chess.com"]
[Date "2024.05.07"]
[Round "2"]
[White "Puzzlebot_1294"]
[Black "tptagain"]
[Result "0-1"]
[WhiteElo "2618"]
[BlackElo "2937"]
[TimeControl "180+1"]
[EndTime "8:21:07 PDT"]
[Termination "tptagain won on time"]

1. d4 {[%clk 0:03:00.9]} 1... d5 {[%clk 0:03:00]} 2. Nf3 {[%clk 0:03:01.1]} 2...
Nf6 {[%clk 0:02:58.5]} 3. Bf4 {[%clk 0:03:01]} 3... e6 {[%clk 0:02:58.1]} 4. e3
{[%clk 0:03:00.8]} 4... c5 {[%clk 0:02:58.6]} 5. c3 {[%clk 0:03:00.5]} 5... Nc6
{[%clk 0:02:59.2]} 6. Nbd2 {[%clk 0:03:00.4]} 6... cxd4 {[%clk 0:02:59.7]} 7.
exd4 {[%clk 0:03:00.5]} 7... Nh5 {[%clk 0:02:59.9]} 8. Bg3 {[%clk 0:02:51.1]}
8... Bd7 {[%clk 0:02:54]} 9. Bd3 {[%clk 0:02:50.7]} 9... g6 {[%clk 0:02:49.3]}
10. Qe2 {[%clk 0:02:48.2]} 10... Rc8 {[%clk 0:02:35.9]} 11. Ne5 {[%clk
0:02:47.1]} 11... Bg7 {[%clk 0:02:16.2]} 12. Ndf3 {[%clk 0:02:36.4]} 12... O-O
{[%clk 0:02:00.9]} 13. O-O {[%clk 0:02:25.3]} 13... Nxg3 {[%clk 0:01:58.2]} 14.
hxg3 {[%clk 0:02:24.8]} 14... Be8 {[%clk 0:01:57.7]} 15. Rfe1 {[%clk 0:02:23.1]}
15... Qd6 {[%clk 0:01:55]} 16. Nxc6 {[%clk 0:02:22.3]} 16... bxc6 {[%clk
0:01:54.2]} 17. b4 {[%clk 0:02:21.2]} 17... Ra8 {[%clk 0:01:47.6]} 18. Ba6
{[%clk 0:02:16.5]} 18... Bd7 {[%clk 0:01:44.7]} 19. a4 {[%clk 0:01:56.8]} 19...
f6 {[%clk 0:01:42.8]} 20. Qe3 {[%clk 0:01:17.1]} 20... Rfe8 {[%clk 0:01:36.9]}
21. Qf4 {[%clk 0:00:36.1]} 21... e5 {[%clk 0:01:32.8]} 22. Qd2 {[%clk
0:00:28.6]} 22... e4 {[%clk 0:01:26.2]} 23. Nh2 {[%clk 0:00:28.5]} 23... f5
{[%clk 0:01:15.5]} 24. Nf1 {[%clk 0:00:28.4]} 24... Qf6 {[%clk 0:01:10.2]} 25.
f4 {[%clk 0:00:26.2]} 25... exf3 {[%clk 0:01:04.9]} 26. gxf3 {[%clk 0:00:25.7]}
26... g5 {[%clk 0:01:04.3]} 27. Bd3 {[%clk 0:00:23.5]} 27... h5 {[%clk
0:00:43.6]} 28. f4 {[%clk 0:00:14.6]} 28... g4 {[%clk 0:00:36]} 29. Qh2 {[%clk
0:00:13.1]} 29... Qg6 {[%clk 0:00:21]} 30. Ne3 {[%clk 0:00:13]} 30... Bf6 {[%clk
0:00:20.2]} 31. Ng2 {[%clk 0:00:13.5]} 31... Re4 {[%clk 0:00:16.1]} 32. Bxe4
{[%clk 0:00:11]} 32... dxe4 {[%clk 0:00:17]} 33. Nh4 {[%clk 0:00:09.5]} 33...
Qf7 {[%clk 0:00:17.3]} 34. Rac1 {[%clk 0:00:08.6]} 34... Qc4 {[%clk 0:00:15.7]}
35. Ng2 {[%clk 0:00:08.7]} 35... Kg7 {[%clk 0:00:15.4]} 36. Ne3 {[%clk
0:00:08.2]} 36... Qf7 {[%clk 0:00:13.4]} 37. d5 {[%clk 0:00:07.8]} 37... cxd5
{[%clk 0:00:13.6]} 38. Nc2 {[%clk 0:00:08.1]} 38... Rc8 {[%clk 0:00:11.6]} 39.
Nd4 {[%clk 0:00:07.6]} 39... Rc4 {[%clk 0:00:12.1]} 40. Qd2 {[%clk 0:00:06.9]}
40... h4 {[%clk 0:00:12.3]} 41. gxh4 {[%clk 0:00:06.7]} 41... Qh5 {[%clk
0:00:12.5]} 42. Re2 {[%clk 0:00:06.8]} 42... Qxh4 {[%clk 0:00:11.9]} 43. Rh2
{[%clk 0:00:06.9]} 43... Qg3+ {[%clk 0:00:11.9]} 44. Rg2 {[%clk 0:00:07.4]}
44... Qd3 {[%clk 0:00:11.5]} 45. Qxd3 {[%clk 0:00:05.5]} 45... exd3 {[%clk
0:00:12.4]} 46. Rd1 {[%clk 0:00:05.8]} 46... Bxd4+ {[%clk 0:00:12.1]} 47. cxd4
{[%clk 0:00:05.6]} 47... Rxd4 {[%clk 0:00:11.9]} 48. Rgd2 {[%clk 0:00:05.8]}
48... Rxf4 {[%clk 0:00:11.9]} 49. Rxd3 {[%clk 0:00:06.2]} 49... Be6 {[%clk
0:00:12.4]} 50. Re1 {[%clk 0:00:04.4]} 50... Kf6 {[%clk 0:00:12.4]} 51. Rde3
{[%clk 0:00:04.8]} 51... Bf7 {[%clk 0:00:12.3]} 52. Re7 {[%clk 0:00:04.5]} 52...
Rxb4 {[%clk 0:00:12.5]} 53. Rxa7 {[%clk 0:00:05]} 53... f4 {[%clk 0:00:12.4]}
54. Ra6+ {[%clk 0:00:05]} 54... Kg5 {[%clk 0:00:11.8]} 55. Ra7 {[%clk
0:00:05.6]} 55... Bg6 {[%clk 0:00:07.1]} 56. Rd7 {[%clk 0:00:05.7]} 56... Be4
{[%clk 0:00:07.1]} 57. a5 {[%clk 0:00:03.7]} 57... Ra4 {[%clk 0:00:07.1]} 58. a6
{[%clk 0:00:02.2]} 58... Rxa6 {[%clk 0:00:07]} 59. Re2 {[%clk 0:00:02]} 59... g3
{[%clk 0:00:07.1]} 60. Re1 {[%clk 0:00:02.1]} 60... Ra2 {[%clk 0:00:07.3]} 61.
Rg7+ {[%clk 0:00:02.4]} 61... Kh4 {[%clk 0:00:06.9]} 62. Rh7+ {[%clk 0:00:01.2]}
62... Bxh7 {[%clk 0:00:06.3]} 63. Re7 {[%clk 0:00:01.8]} 63... Be4 {[%clk
0:00:05.8]} 0-1